[Event "Wch u20 girls"]
[Site "Kocaeli"]
[Date "2013.09.26"]
[Round "13.26"]
[White "Derakhshani, Dorsa"]
[Black "Tuzi, Bruna"]
[Result "1-0"]
[ECO "B33"]
[WhiteElo "2078"]
[BlackElo "1687"]
[PlyCount "53"]
[EventDate "2013.09.??"]
[EventType "swiss"]
[EventRounds "13"]
[EventCountry "TUR"]
[Source "CBase R.Goldau"]
[SourceDate "2000.03.01"]
[TimeControl "40/5400+30:1800+30"]

1. e4 {[%emt 0:00:30]} c5 {[%emt 0:00:30]} 2. Nf3 {[%emt 0:00:00]} Nc6 {[%emt
0:00:00]} 3. d4 {[%emt 0:00:00]} cxd4 {[%emt 0:00:00]} 4. Nxd4 {[%emt 0:00:30]}
Nf6 {[%emt 0:00:00]} 5. Nc3 {[%emt 0:00:00]} e5 {[%emt 0:00:00]} 6. Ndb5 {
[%emt 0:00:00]} d6 {[%emt 0:00:30]} 7. Bg5 {[%emt 0:00:30]} a6 {[%emt 0:00:00]}
8. Na3 {[%emt 0:00:00]} b5 {[%emt 0:00:00]} 9. Nd5 {[%emt 0:00:00]} Be7 {[%emt
0:00:30]} 10. Bxf6 {[%emt 0:00:30]} Bxf6 {[%emt 0:00:00]} 11. c4 {[%emt 0:00:
00]} b4 {[%emt 0:01:00]} 12. Nc2 {[%emt 0:00:00]} a5 {[%emt 0:00:30]} 13. Qf3 {
[%emt 0:00:30]} O-O {[%emt 0:02:30]} 14. Rd1 {[%emt 0:00:30]} Bb7 {[%emt 0:04:
30]} 15. g3 {[%emt 0:10:30]} Bg5 {[%emt 0:01:30]} 16. h4 {[%emt 0:02:30]} Bh6 {
[%emt 0:01:30]} 17. g4 {[%emt 0:09:30]} g6 {[%emt 0:00:30]} 18. Nf6+ {[%emt 0:
05:30]} Kh8 {[%emt 0:00:30]} 19. g5 {[%emt 0:00:30]} Bg7 {[%emt 0:00:30]} 20.
c5 {[%emt 0:00:30]} Bxf6 {[%emt 0:05:30]} 21. Rxd6 {[%emt 0:01:30]} Qc7 {[%emt
0:00:30]} 22. Qxf6+ {[%emt 0:07:30]} Kg8 {[%emt 0:00:00]} 23. h5 {[%emt 0:00:
30]} gxh5 {[%emt 0:03:00]} 24. Rxh5 {[%emt 0:05:30]} Rad8 {[%emt 0:03:30]} 25.
Qh6 {[%emt 0:01:30]} f6 {[%emt 0:03:30]} 26. Bc4+ {[%emt 0:00:30]} Kh8 {[%emt
0:00:30]} 27. g6 {[%emt 0:00:30]} 1-0

[Event "Wch u20 girls"]
[Site "Kocaeli"]
[Date "2013.09.26"]
[Round "13.27"]
[White "Anjana Krishna, S."]
[Black "Anu, Bayar"]
[Result "1/2-1/2"]
[ECO "B07"]
[WhiteElo "1881"]
[BlackElo "2012"]
[PlyCount "98"]
[EventDate "2013.09.??"]
[EventType "swiss"]
[EventRounds "13"]
[EventCountry "TUR"]
[Source "CBase R.Goldau"]
[SourceDate "2000.03.01"]
[TimeControl "40/5400+30:1800+30"]

1. e4 {[%emt 0:00:30]} c5 {[%emt 0:00:30]} 2. c3 {[%emt 0:00:00]} d6 {[%emt 0:
00:00]} 3. d4 {[%emt 0:00:00]} Nf6 {[%emt 0:00:00]} 4. Bd3 {[%emt 0:00:30]} Nc6
{[%emt 0:00:30]} 5. Nf3 {[%emt 0:00:30]} Bg4 {[%emt 0:01:30]} 6. d5 {[%emt 0:
03:30]} Ne5 {[%emt 0:00:30]} 7. Nxe5 {[%emt 0:04:30]} dxe5 {[%emt 0:11:30]} 8.
f3 {[%emt 0:01:30]} Bd7 {[%emt 0:00:30]} 9. O-O {[%emt 0:06:30]} g6 {[%emt 0:
06:30]} 10. Na3 {[%emt 0:04:30]} Bg7 {[%emt 0:04:30]} 11. Be3 {[%emt 0:01:30]}
b6 {[%emt 0:03:30]} 12. Qd2 {[%emt 0:00:30]} O-O {[%emt 0:00:00]} 13. Rad1 {
[%emt 0:06:30]} e6 {[%emt 0:05:00]} 14. Bh6 {[%emt 0:06:30]} a6 {[%emt 0:08:30]
} 15. Bxg7 {[%emt 0:02:30]} Kxg7 {[%emt 0:00:30]} 16. Nc4 {[%emt 0:03:30]} exd5
{[%emt 0:03:30]} 17. Nxe5 {[%emt 0:03:30]} Be6 {[%emt 0:07:30]} 18. Qe1 {[%emt
0:13:30]} Qc7 {[%emt 0:01:30]} 19. exd5 {[%emt 0:01:30]} Bxd5 {[%emt 0:00:30]}
20. c4 {[%emt 0:01:30]} Rae8 {[%emt 0:09:30]} 21. f4 {[%emt 0:01:30]} Ba8 {
[%emt 0:00:30]} 22. Qc3 {[%emt 0:00:30]} Kg8 {[%emt 0:01:30]} 23. Rde1 {[%emt
0:05:30]} Qb7 {[%emt 0:04:30]} 24. Rf2 {[%emt 0:00:30]} Re7 {[%emt 0:07:30]}
25. h3 {[%emt 0:03:30]} Rfe8 {[%emt 0:00:30]} 26. Ree2 {[%emt 0:01:30]} Rf8 {
[%emt 0:10:07]} 27. f5 {[%emt 0:03:30]} g5 {[%emt 0:05:46]} 28. Nf3 {[%emt 0:
03:30]} Rxe2 {[%emt 0:01:35]} 29. Rxe2 {[%emt 0:00:30]} Nh5 {[%emt 0:00:45]}
30. Re1 {[%emt 0:03:21]} Qc7 {[%emt 0:02:25]} 31. Be4 {[%emt 0:02:48]} Qg3 {
[%emt 0:01:14]} 32. Bxa8 {[%emt 0:01:07]} Rxa8 {[%emt 0:00:56]} 33. Nh2 {[%emt
0:05:00]} Qxc3 {[%emt 0:01:17]} 34. bxc3 {[%emt 0:00:05]} Rd8 {[%emt 0:00:28]}
35. Nf3 {[%emt 0:00:41]} h6 {[%emt 0:00:55]} 36. Kf2 {[%emt 0:02:33]} Kg7 {
[%emt 0:00:29]} 37. Rb1 {[%emt 0:00:53]} Rd6 {[%emt 0:00:32]} 38. Rb2 {[%emt 0:
01:15]} Nf4 {[%emt 0:01:05]} 39. Ke3 {[%emt 0:02:51]} Kf6 {[%emt 0:00:27]} 40.
Ke4 {[%emt 0:00:00]} Nh5 {[%emt 0:00:00]} 41. g4 {[%emt 0:02:26]} Nf4 {[%emt 0:
09:59]} 42. h4 {[%emt 0:00:00]} b5 {[%emt 0:00:30]} 43. hxg5+ {[%emt 0:00:00]}
hxg5 {[%emt 0:00:00]} 44. Rd2 {[%emt 0:11:30]} Rxd2 {[%emt 0:05:44]} 45. Nxd2 {
[%emt 0:00:30]} Ke7 {[%emt 0:00:04]} 46. Kf3 {[%emt 0:01:30]} Nd3 {[%emt 0:02:
10]} 47. Ke4 {[%emt 0:01:30]} Nf4 {[%emt 0:02:27]} 48. Kf3 {[%emt 0:00:30]} Nd3
{[%emt 0:03:30]} 49. Ke4 {[%emt 0:00:00]} Nf4 {[%emt 0:00:48]} 1/2-1/2

[Event "Wch u20 girls"]
[Site "Kocaeli"]
[Date "2013.09.26"]
[Round "13.28"]
[White "Miladinovic, Lena"]
[Black "Ichimura G Barbosa, Larissa Y"]
[Result "1-0"]
[ECO "E97"]
[WhiteElo "2080"]
[BlackElo "1868"]
[PlyCount "59"]
[EventDate "2013.09.??"]
[EventType "swiss"]
[EventRounds "13"]
[EventCountry "TUR"]
[Source "CBase R.Goldau"]
[SourceDate "2000.03.01"]
[TimeControl "40/5400+30:1800+30"]

1. d4 {[%emt 0:00:30]} Nf6 {[%emt 0:00:30]} 2. Nf3 {[%emt 0:00:00]} g6 {[%emt
0:00:30]} 3. c4 {[%emt 0:00:00]} Bg7 {[%emt 0:00:00]} 4. Nc3 {[%emt 0:00:00]}
O-O {[%emt 0:00:00]} 5. e4 {[%emt 0:00:00]} d6 {[%emt 0:00:30]} 6. Be2 {[%emt
0:00:00]} e5 {[%emt 0:00:30]} 7. O-O {[%emt 0:00:00]} Nc6 {[%emt 0:00:30]} 8.
d5 {[%emt 0:00:30]} Ne7 {[%emt 0:00:30]} 9. Kh1 {[%emt 0:00:00]} Ne8 {[%emt 0:
05:30]} 10. Ne1 {[%emt 0:00:00]} f5 {[%emt 0:01:30]} 11. exf5 {[%emt 0:00:30]}
gxf5 {[%emt 0:02:30]} 12. f4 {[%emt 0:00:00]} Nf6 {[%emt 0:15:30]} 13. fxe5 {
[%emt 0:03:00]} dxe5 {[%emt 0:00:30]} 14. Nd3 {[%emt 0:06:30]} Ng6 {[%emt 0:03:
30]} 15. Bg5 {[%emt 0:06:30]} Bd7 {[%emt 0:06:30]} 16. Nc5 {[%emt 0:09:30]} Qc8
{[%emt 0:06:30]} 17. Nxd7 {[%emt 0:02:30]} Qxd7 {[%emt 0:02:30]} 18. c5 {[%emt
0:01:30]} h6 {[%emt 0:12:30]} 19. Bxf6 {[%emt 0:09:30]} Rxf6 {[%emt 0:02:30]}
20. Qb3 {[%emt 0:01:30]} Rb8 {[%emt 0:03:30]} 21. d6+ {[%emt 0:02:30]} Kh7 {
[%emt 0:03:30]} 22. Nd5 {[%emt 0:01:30]} cxd6 {[%emt 0:02:30]} 23. Nxf6+ {
[%emt 0:00:30]} Bxf6 {[%emt 0:00:30]} 24. Rad1 {[%emt 0:01:30]} Qg7 {[%emt 0:
02:30]} 25. Rxd6 {[%emt 0:12:30]} Rg8 {[%emt 0:06:30]} 26. Bc4 {[%emt 0:02:30]}
Rf8 {[%emt 0:02:16]} 27. Be6 {[%emt 0:04:30]} Be7 {[%emt 0:02:42]} 28. Rd7 {
[%emt 0:02:30]} f4 {[%emt 0:03:56]} 29. Qxb7 {[%emt 0:04:30]} Qf6 {[%emt 0:02:
05]} 30. Bd5 {[%emt 0:02:30]} 1-0

[Event "Wch u20 girls"]
[Site "Kocaeli"]
[Date "2013.09.26"]
[Round "13.29"]
[White "Racki, Barbara"]
[Black "Fuentes Godoy, Lilia Ivonne"]
[Result "1-0"]
[ECO "B01"]
[WhiteElo "1946"]
[BlackElo "1836"]
[PlyCount "40"]
[EventDate "2013.09.??"]
[EventType "swiss"]
[EventRounds "13"]
[EventCountry "TUR"]
[Source "CBase R.Goldau"]
[SourceDate "2000.03.01"]
[TimeControl "40/5400+30:1800+30"]

1. e4 {[%emt 0:00:30]} d5 {[%emt 0:00:30]} 2. exd5 {[%emt 0:00:00]} Qxd5 {
[%emt 0:00:30]} 3. Nc3 {[%emt 0:00:00]} Qd8 {[%emt 0:00:00]} 4. d4 {[%emt 0:00:
30]} Nf6 {[%emt 0:01:00]} 5. Bc4 {[%emt 0:05:30]} e6 {[%emt 0:00:30]} 6. Nf3 {
[%emt 0:02:30]} a6 {[%emt 0:00:30]} 7. Qe2 {[%emt 0:02:30]} Be7 {[%emt 0:10:30]
} 8. Bf4 {[%emt 0:05:30]} O-O {[%emt 0:02:30]} 9. O-O-O {[%emt 0:00:30]} Nd5 {
[%emt 0:08:30]} 10. Nxd5 {[%emt 0:26:30]} exd5 {[%emt 0:00:30]} 11. Bd3 {[%emt
0:00:30]} Nc6 {[%emt 0:03:30]} 12. a3 {[%emt 0:12:30]} Bg4 {[%emt 0:08:30]} 13.
h3 {[%emt 0:08:30]} Nxd4 {[%emt 0:06:30]} 14. Bxh7+ {[%emt 0:00:00]} Kh8 {
[%emt 0:02:30]} 15. Rxd4 {[%emt 0:01:00]} Bxf3 {[%emt 0:00:30]} 16. Qxf3 {
[%emt 0:03:30]} Kxh7 {[%emt 0:00:30]} 17. Rxd5 {[%emt 0:00:30]} Qc8 {[%emt 0:
00:30]} 18. Qe4+ {[%emt 0:00:30]} Kg8 {[%emt 0:01:30]} 19. Qxe7 {[%emt 0:00:30]
} Re8 {[%emt 0:01:30]} 20. Qd7 {[%emt 0:01:30]} Qd8 {[%emt 0:00:30]} 1-0

[Event "Wch u20 girls"]
[Site "Kocaeli"]
[Date "2013.09.26"]
[Round "13.30"]
[White "Leonardi, Caterina"]
[Black "Shyngys Kyzy, Aijarkyn"]
[Result "1/2-1/2"]
[ECO "D47"]
[WhiteElo "1936"]
[BlackElo "1780"]
[PlyCount "76"]
[EventDate "2013.09.??"]
[EventType "swiss"]
[EventRounds "13"]
[EventCountry "TUR"]
[Source "CBase R.Goldau"]
[SourceDate "2000.03.01"]
[TimeControl "40/5400+30:1800+30"]

1. d4 {[%emt 0:00:30]} Nf6 {[%emt 0:00:30]} 2. c4 {[%emt 0:00:00]} c6 {[%emt 0:
00:00]} 3. Nc3 {[%emt 0:01:00]} d5 {[%emt 0:00:00]} 4. Nf3 {[%emt 0:00:30]} e6
{[%emt 0:00:00]} 5. e3 {[%emt 0:00:30]} Nbd7 {[%emt 0:00:00]} 6. Be2 {[%emt 0:
00:30]} dxc4 {[%emt 0:00:30]} 7. Bxc4 {[%emt 0:00:30]} b5 {[%emt 0:00:00]} 8.
Bb3 {[%emt 0:01:30]} a6 {[%emt 0:02:00]} 9. O-O {[%emt 0:02:30]} c5 {[%emt 0:
00:30]} 10. d5 {[%emt 0:03:30]} exd5 {[%emt 0:04:30]} 11. Nxd5 {[%emt 0:02:30]}
Bb7 {[%emt 0:02:30]} 12. e4 {[%emt 0:01:30]} c4 {[%emt 0:10:30]} 13. Bc2 {
[%emt 0:05:30]} Bc5 {[%emt 0:04:30]} 14. Bg5 {[%emt 0:01:30]} h6 {[%emt 0:19:
30]} 15. Bh4 {[%emt 0:08:30]} O-O {[%emt 0:12:30]} 16. b3 {[%emt 0:07:30]} Bxd5
{[%emt 0:16:30]} 17. exd5 {[%emt 0:00:30]} c3 {[%emt 0:00:30]} 18. Qd3 {[%emt
0:00:30]} b4 {[%emt 0:00:30]} 19. Rad1 {[%emt 0:01:30]} Re8 {[%emt 0:05:07]}
20. Nd4 {[%emt 0:01:30]} Qb6 {[%emt 0:03:12]} 21. Nf5 {[%emt 0:01:30]} Ne5 {
[%emt 0:04:58]} 22. Qg3 {[%emt 0:06:30]} Nh5 {[%emt 0:01:42]} 23. Qh3 {[%emt 0:
05:30]} Nf4 {[%emt 0:00:26]} 24. Ne7+ {[%emt 0:00:00]} Bxe7 {[%emt 0:01:18]}
25. Qf5 {[%emt 0:00:00]} Ne2+ {[%emt 0:02:36]} 26. Kh1 {[%emt 0:00:30]} Bxh4 {
[%emt 0:00:11]} 27. Qh7+ {[%emt 0:00:30]} Kf8 {[%emt 0:00:01]} 28. d6 {[%emt 0:
00:30]} Ng6 {[%emt 0:00:46]} 29. f4 {[%emt 0:01:30]} Nexf4 {[%emt 0:07:11]} 30.
Rxf4 {[%emt 0:00:30]} Bf6 {[%emt 0:00:14]} 31. Rxf6 {[%emt 0:00:30]} gxf6 {
[%emt 0:01:56]} 32. Qxh6+ {[%emt 0:00:30]} Kg8 {[%emt 0:00:01]} 33. Bxg6 {
[%emt 0:00:30]} fxg6 {[%emt 0:00:01]} 34. Qxg6+ {[%emt 0:00:30]} Kh8 {[%emt 0:
00:42]} 35. Qh6+ {[%emt 0:00:00]} Kg8 {[%emt 0:00:01]} 36. Qg6+ {[%emt 0:00:00]
} Kh8 {[%emt 0:00:03]} 37. Qh6+ {[%emt 0:00:30]} Kg8 {[%emt 0:00:04]} 38. Qg6+
{[%emt 0:00:00]} Kh8 {[%emt 0:00:06]} 1/2-1/2